lending/lending_fUSD_20250913
["ID","MTS","AMOUNT","RATE_DAILY","PERIOD"]
[385277242,1757733044336,-150.0,0.00030338,7]
[385277244,1757733044345,-173.15,0.0003054,2]
[385277246,1757733044354,-840.0,0.0003058,2]
[385277247,1757733044363,-166.7,0.00030668,2]
[385277249,1757733044373,-156.0,0.00031,120]
[385277251,1757733044383,-3895.08010308,0.00031,120]
[385277252,1757733044392,-464.19,0.0003111,28]
[385277254,1757733044401,-500.0,0.00031426,2]
[385277256,1757733044410,-1500.0,0.00031426,2]
[385277257,1757733044419,-823.0,0.0003177,2]
[385277259,1757733044428,-542.58,0.00031781,2]
[385277261,1757733044437,-1191.32,0.00031781,2]
[385277262,1757733044446,-542.58,0.00031781,2]
[385277264,1757733044455,-542.58,0.00031781,2]
[385277265,1757733044464,-542.58,0.00031781,2]
[385277267,1757733044473,-542.58,0.00031781,2]
[385277269,1757733044482,-542.58,0.00031781,2]
[385277270,1757733044491,-542.58,0.00031781,2]
[385277272,1757733044500,-163.056674,0.00031781,7]
[385277274,1757733044509,-151.0,0.00031781,7]
[385277275,1757733044517,-197.721138,0.00031781,7]
[385277277,1757733044526,-152.0,0.000318,3]
[385277279,1757733044535,-168.27,0.00032534,2]
[385277280,1757733044544,-1191.32,0.00032534,2]
[385277282,1757733044554,-806.53,0.00032534,2]
[385277284,1757733044563,-542.58,0.00032534,2]
[385277286,1757733044573,-1100.07,0.00032634,2]
[385277288,1757733044582,-1190.97,0.00032634,2]
[385277290,1757733044591,-410.6,0.00032634,2]
[385277291,1757733044599,-376.33,0.00032634,2]
[385277292,1757733044608,-349.32,0.00032634,2]
[385277293,1757733044617,-3346.0,0.00032643,2]
[385277294,1757733044626,-500.0,0.00032876,120]
[385277295,1757733044635,-500.0,0.00032876,120]
[385277296,1757733044644,-500.0,0.00032876,120]
[385277297,1757733044653,-587.37215106,0.00032876,120]
[385277298,1757733044662,-805.0,0.0003295,2]
[385277299,1757733044671,-174.4004049,0.00032996,15]
[385277300,1757733044680,-1009.0,0.00033,7]
[385277301,1757733044689,-168.0,0.00033043,2]
[385277302,1757733044698,-6173.0,0.00033048,2]
[385277303,1757733044707,-4168.0,0.00033048,2]
[385277304,1757733044716,-18853.0,0.00033048,2]
[385277305,1757733044725,-726.0,0.00033048,2]
[385277306,1757733044734,-1105.0,0.00033222,7]
[385277308,1757733044743,-731.15471703,0.00033249,2]
[385277310,1757733044753,-277.35679052,0.00033249,2]
[385277312,1757733044762,-300.59,0.00033353,2]
[385277314,1757733044771,-4385.16648495,0.00033457,2]
[385277316,1757733044780,-150.0,0.00033458,2]
[385277318,1757733044790,-15000.0,0.00033463,7]
[385277320,1757733044799,-1045.8308,0.00033558,2]
[385277322,1757733044808,-1000.0,0.00033558,2]
[385277324,1757733044818,-150.172,0.00033658,2]
[385277326,1757733044826,-150.361,0.00033658,2]
[385277328,1757733044835,-150.0,0.00033658,2]
[385277330,1757733044844,-150.0,0.00033658,2]
[385277332,1757733044854,-160.611,0.00033658,2]
[385277334,1757733044864,-150.189,0.00033658,2]
[385277336,1757733044873,-150.0,0.00033658,2]
[385277338,1757733044882,-1260.0,0.00033658,2]
[385277340,1757733044894,-3388.0,0.00033658,2]
[385277342,1757733044903,-2038.0,0.00033658,2]
[385277344,1757733044913,-887.0,0.00033658,2]
[385277346,1757733044922,-607.659,0.00033658,2]
[385277348,1757733044931,-571.37,0.00033658,2]
[385277350,1757733044940,-1308.579,0.00033658,2]
[385277352,1757733044948,-1579.0,0.00033658,2]
[385277354,1757733044957,-812.0,0.00033658,2]
[385277356,1757733044966,-283.0,0.00033716,2]
[385277358,1757733044975,-515.60081738,0.00033748,2]
[385277360,1757733044984,-155.85,0.00033844,2]
[385277362,1757733044993,-771.15743221,0.00033922,2]
[385277364,1757733045002,-1105.0,0.00033988,2]
[385277366,1757733045012,-28666.8739232,0.00034,15]
[385277368,1757733045021,-283.0,0.00034098,7]
[385277370,1757733045030,-300.0,0.00034121,10]
[385277372,1757733045039,-155.0,0.00034121,2]
[385277374,1757733045048,-788.0,0.0003413,2]
[385277376,1757733045057,-771.15743212,0.0003419,2]
[385277378,1757733045066,-500.0,0.00034227,2]
[385277380,1757733045076,-1500.0,0.00034227,2]
[385277382,1757733045092,-450.71482548,0.00034233,2]
[385277384,1757733045102,-1368.88,0.00034332,2]
[385277386,1757733045111,-423.0,0.00034332,5]
[385277388,1757733045121,-3003.11854807,0.00034332,2]
[385277390,1757733045132,-183952.93230626,0.00034332,2]
[385277768,1757733055506,1006.8933493,0.0002103,2]
[385277769,1757733174752,809.156,0.0002,2]
[385277772,1757733640967,-1006.8933493,0.00023746,2]
[385277773,1757733948649,8897.20991336,0.0001995,15]
[385277774,1757733964441,2467.45621101,8e-05,2]
[385277779,1757734013374,181.51,0.00016412,2]
[385277783,1757734119119,-250.0,0.00022,15]
[385277802,1757734232225,-263.23408766,0.00022,15]
[385277803,1757734232235,-276.89152986,0.00023332,2]
[385277804,1757734232248,-94.3405919,0.00023332,2]
[385277805,1757734232257,-155.74845718,0.00023333,7]
[385277806,1757734232401,-6441.95103516,0.00023333,7]
[385277807,1757734232415,-190.53942752,0.00024788,2]
[385277808,1757734232425,-250.0,0.00024788,2]
[385277809,1757734232435,-500.0,0.000248,2]
[385277810,1757734232445,-300.0,0.00024899,2]
[385277811,1757734232455,-300.0,0.00024899,2]
[385277812,1757734232465,-1006.8933493,0.00026462,2]
[385277813,1757734232480,-420.0,0.00026977,2]
[385277814,1757734232490,-530.0047,0.00027137,2]
[385277815,1757734232500,-300.0,0.00027253,2]
[385277816,1757734232510,-250.0,0.00027253,2]
[385277817,1757734232520,-195.0,0.00027253,2]
[385277818,1757734232529,-150.66,0.00027397,2]
[385277819,1757734232538,-515.60081738,0.00028878,2]
[385277820,1757734232548,-312.7991726,0.00029177,2]
[385277821,1757734232564,-446.57142673,0.00029177,2]
[385277822,1757734232587,-247.52274997,0.00029177,2]
[385277823,1757734232599,-587.0,0.00029228,2]
[385277824,1757734232609,-657.28083342,0.00031667,3]
[385277827,1757734232625,-165.71916658,0.00031667,3]
[385277829,1757734232635,-282.03,0.00031925,2]
[385277831,1757734232644,-150.0,0.00032205,7]
[385277833,1757734232654,-181.51,0.00032823,2]
[385277835,1757734232663,-285.0,0.00033,14]
[385277837,1757734232673,-173.0,0.00033,14]
[385277839,1757734232682,-173.0,0.00033151,30]
[385277841,1757734232691,-285.0,0.00033151,30]
[385277843,1757734232701,-202.1921535,0.00033196,2]
[385277845,1757734232713,-75.16463702,0.00033196,2]
[385277847,1757734232722,-500.0,0.00033631,2]
[385277849,1757734232731,-150.66,0.00033844,2]
[385277851,1757734232741,-168.0,0.00033878,2]
[385277853,1757734232750,-1000.0,0.000339,2]
[385277855,1757734232759,-371.352,0.0003397,37]
[385277857,1757734232769,-224.27340693,0.0003397,2]
[385277859,1757734232779,-500.0,0.0003397,2]
[385277861,1757734232789,-500.0,0.0003397,2]
[385277863,1757734232798,-25.28856508,0.0003397,2]
[385277917,1757734238094,-765.28844055,0.000249,2]
[385277918,1757734238151,-666.00004142,0.000249,2]
[385277919,1757734238162,-704.27,0.000249,2]
[385277920,1757734238212,-4981.28003091,0.000249,2]
[385277921,1757734238222,-243.19600985,0.0003397,2]
[385277922,1757734238231,-500.0,0.0003397,2]
[385277923,1757734238240,-500.0,0.0003397,2]
[385277924,1757734238251,-256.4307407,0.0003397,2]
[385277925,1757734238261,-151.0,0.0003397,2]
[385277926,1757734238270,-151.0,0.0003397,2]
[385277927,1757734238282,-151.0,0.0003397,2]
[385277928,1757734238292,-151.0,0.0003397,2]
[385277929,1757734238301,-151.0,0.0003397,2]
[385277930,1757734238311,-151.0,0.0003397,2]
[385277931,1757734238320,-151.0,0.0003397,2]
[385277932,1757734238330,-151.0,0.0003397,2]
[385277940,1757734238579,-500.0,0.0003397,2]
[385277943,1757734238611,-500.0,0.0003397,2]
[385277945,1757734238621,-500.0,0.0003397,2]
[385277947,1757734238630,-515.35776711,0.0003397,2]
[385277949,1757734238640,-500.0,0.0003397,2]
[385277951,1757734238648,-500.0,0.0003397,2]
[385277953,1757734238658,-500.0,0.0003397,2]
[385277955,1757734238667,-500.0,0.0003397,2]
[385277956,1757734238676,-500.0,0.0003397,2]
[385277958,1757734238685,-500.0,0.0003397,2]
[385277960,1757734238694,-151.0,0.0003397,2]
[385277962,1757734238703,-500.0,0.0003397,2]
[385277963,1757734238712,-500.0,0.0003397,2]
[385277964,1757734238722,-151.0,0.0003397,2]
[385277965,1757734238731,-151.0,0.0003397,2]
[385277966,1757734238740,-151.0,0.0003397,2]
[385277967,1757734238749,-239.76183921,0.0003397,2]
[385277968,1757734238759,-1172.056647,0.00033988,2]
[385277969,1757734238769,-154.04215958,0.0003399,7]
[385277970,1757734238778,-204.13700283,0.0003399,7]
[385277971,1757734238787,-158.37195759,0.0003399,7]
[385277972,1757734238797,-166.81282089,0.0003399,7]
[385277973,1757734238807,-158.2549789,0.0003399,7]
[385277974,1757734238817,-601.0,0.00033991,2]
[385277975,1757734238826,-1302.0,0.00033991,2]
[385277976,1757734238835,-568.0,0.00033991,2]
[385277977,1757734238847,-1579.0,0.00033991,2]
[385277978,1757734238856,-812.0,0.00033991,2]
[385277979,1757734238866,-897.0,0.00033991,2]
[385277980,1757734238875,-1177.0,0.00033991,2]
[385277981,1757734238885,-887.0,0.00033991,2]
[385277982,1757734238894,-1260.0,0.00033991,2]
[385277983,1757734238903,-2038.0,0.00033991,2]
[385277984,1757734238913,-3388.0,0.00033991,2]
[385277985,1757734238922,-264.03194853,0.00034,120]
[385277986,1757734238932,-2005.85,0.00034,34]
[385277987,1757734238941,-24638.05881601,0.00034,7]
[385277988,1757734238960,-1420.32407115,0.00034,7]
[385277989,1757734238971,-1239.23805153,0.00034,7]
[385277990,1757734238990,-1416.15866498,0.00034,7]
[385278008,1757734243843,-82.8823851,0.000261,5]
[385278014,1757734243885,-266.1176149,0.000261,5]
[385278016,1757734243894,-18853.0,0.00033991,2]
[385278018,1757734243903,-107496.89750565,0.00034,7]
[385278020,1757734243913,-152.410253,0.00034,7]
[385278022,1757734243922,-151.0,0.00034,7]
[385278024,1757734243931,-151.0,0.00034,7]
[385278026,1757734243941,-151.0,0.00034,7]
[385278028,1757734243950,-199.94,0.00034004,2]
[385278030,1757734243959,-150.0,0.00034004,2]
[385278032,1757734243969,-150.0,0.00034004,2]
[385278034,1757734243978,-150.0,0.00034004,2]
[385278036,1757734243987,-2172.9346108,0.00034053,2]
[385278038,1757734243996,-226.191026,0.00034053,2]
[385278040,1757734244005,-334.54311169,0.00034075,30]
[385278042,1757734244015,-168.0,0.00034076,2]
[385278044,1757734244024,-168.0,0.00034193,2]
[385278045,1757734244033,-168.0,0.00034234,2]
[385278046,1757734244042,-500.0,0.00034244,2]
[385278047,1757734244051,-800.0,0.00034246,60]
[385278048,1757734244060,-165.0,0.000343,33]
[385278049,1757734244070,-164.38,0.000343,30]
[385278050,1757734244079,-219.22076177,0.00034332,2]
[385278051,1757734244089,-169.01753094,0.00034332,2]
[385278052,1757734244098,-152.0,0.00034332,7]
[385278053,1757734244107,-296.71761515,0.00034332,7]
[385278054,1757734244117,-152.0,0.00034332,7]
[385278056,1757734244127,-500.0,0.00034332,5]
[385278058,1757734244136,-1052.87252532,0.00034333,2]
[385278060,1757734244146,-152.0,0.0003435,4]
[385278062,1757734244156,-168.0,0.00034398,2]
[385278064,1757734244165,-3398.73703118,0.00034426,2]
[385278067,1757734244175,-283.0,0.00034471,2]
[385278069,1757734244184,-500.0,0.00034498,5]
[385278071,1757734244194,-6976.0348,0.000345,2]
[385278073,1757734244203,-232.0563,0.000345,2]
[385278075,1757734244213,-500.0,0.00034518,2]
[385278076,1757734244223,-800.0,0.0003452,60]
[385278079,1757734244232,-173.0,0.00034521,30]
[385278081,1757734244242,-285.0,0.00034521,30]
[385278082,1757734244251,-168.0,0.00034531,2]
[385278085,1757734244261,-287.61899177,0.00034565,2]
[385278086,1757734244270,-156.42769204,0.000346,2]
[385278089,1757734244279,-218.0,0.000346,2]
[385278091,1757734244289,-242.0,0.000346,2]
[385278093,1757734244299,-383.0,0.000346,2]
[385278095,1757734244308,-588.0,0.00034651,2]
[385278097,1757734244317,-547.0,0.00034666,7]
[385278099,1757734244326,-152.0,0.00034666,7]
[385278101,1757734244335,-547.0,0.00034666,7]
[385278103,1757734244344,-152.0,0.00034666,7]
[385278105,1757734244353,-547.0,0.00034666,7]
[385278107,1757734244364,-1226.0,0.00034666,7]
[385278108,1757734244373,-152.0,0.00034666,7]
[385278110,1757734244382,-152.0,0.00034666,7]
[385278112,1757734244391,-1226.0,0.00034666,7]
[385278114,1757734244400,-152.0,0.00034666,7]
[385278116,1757734244411,-1226.0,0.00034666,7]
[385278118,1757734244420,-1226.0,0.00034666,7]
[385278120,1757734244429,-152.0,0.00034666,7]
[385278122,1757734244439,-1226.0,0.00034666,7]
[385278124,1757734244449,-152.0,0.00034666,7]
[385278126,1757734244458,-1226.0,0.00034666,7]
[385278128,1757734244468,-152.0,0.00034666,7]
[385278130,1757734244478,-1226.0,0.00034666,7]
[385278132,1757734244489,-152.0,0.00034666,7]
[385278134,1757734244498,-547.0,0.00034666,7]
[385278136,1757734244507,-1226.0,0.00034666,7]
[385278138,1757734244517,-152.0,0.00034666,7]
[385278140,1757734244526,-1226.0,0.00034666,7]
[385278142,1757734244535,-152.0,0.00034666,7]
[385278144,1757734244545,-547.0,0.00034666,7]
[385278146,1757734244554,-1226.0,0.00034666,7]
[385278148,1757734244563,-547.0,0.00034666,7]
[385278150,1757734244572,-1226.0,0.00034666,7]
[385278152,1757734244581,-152.0,0.00034666,7]
[385278154,1757734244590,-547.0,0.00034666,7]
[385278156,1757734244599,-152.0,0.00034666,7]
[385278158,1757734244609,-547.0,0.00034666,7]
[385278160,1757734244618,-1226.0,0.00034666,7]
[385278162,1757734244628,-152.0,0.00034666,7]
[385278164,1757734244637,-547.0,0.00034666,7]
[385278166,1757734244646,-1226.0,0.00034666,7]
[385278167,1757734244655,-152.0,0.00034666,7]
[385278169,1757734244664,-547.0,0.00034666,7]
[385278170,1757734244673,-1226.0,0.00034666,7]
[385278172,1757734244682,-152.0,0.00034666,7]
[385278173,1757734244691,-547.0,0.00034666,7]
[385278175,1757734244700,-1226.0,0.00034666,7]
[385278176,1757734244708,-152.0,0.00034666,7]
[385278178,1757734244717,-547.0,0.00034666,7]
[385278179,1757734244726,-155.41682162,0.00034666,7]
[385278181,1757734244735,-1226.0,0.00034666,7]
[385278182,1757734244743,-152.0,0.00034666,7]
[385278184,1757734244752,-152.0,0.00034666,7]
[385278185,1757734244761,-1226.0,0.00034666,7]
[385278187,1757734244770,-152.0,0.00034666,7]
[385278188,1757734244779,-1226.0,0.00034666,7]
[385278190,1757734244788,-152.0,0.00034666,7]
[385278192,1757734244797,-1226.0,0.00034666,7]
[385278193,1757734244806,-152.0,0.00034666,7]
[385278195,1757734244815,-1226.0,0.00034666,7]
[385278196,1757734244825,-152.0,0.00034666,7]
[385278198,1757734244834,-1226.0,0.00034666,7]
[385278199,1757734244844,-152.0,0.00034666,7]
[385278201,1757734244853,-152.0,0.00034666,7]
[385278203,1757734244862,-1226.0,0.00034666,7]
[385278204,1757734244871,-152.0,0.00034666,7]
[385278206,1757734244880,-1226.0,0.00034666,7]
[385278207,1757734244890,-1226.0,0.00034666,7]
[385278209,1757734244899,-152.0,0.00034666,7]
[385278210,1757734244907,-152.0,0.00034666,7]
[385278212,1757734244916,-1226.0,0.00034666,7]
[385278214,1757734244925,-152.0,0.00034666,7]
[385278215,1757734244934,-152.0,0.00034666,7]
[385278217,1757734244943,-152.0,0.00034666,7]
[385278219,1757734244952,-152.0,0.00034666,7]
[385278220,1757734244961,-152.0,0.00034666,7]
[385278222,1757734244970,-164.906264,0.00034666,7]
[385278223,1757734244979,-151.0,0.00034666,7]
[385278225,1757734244988,-151.0,0.00034666,7]
[385278227,1757734244997,-154.275384,0.00034666,7]
[385278228,1757734245006,-151.0,0.00034666,7]
[385278230,1757734245015,-151.0,0.00034666,7]
[385278232,1757734245024,-178.352537,0.00034666,7]
[385278233,1757734245033,-178.352537,0.00034666,7]
[385278235,1757734245045,-151.0,0.00034666,7]
[385278237,1757734245054,-178.352537,0.00034666,7]
[385278238,1757734245063,-178.352537,0.00034666,7]
[385278240,1757734245072,-178.352537,0.00034666,7]
[385278242,1757734245082,-178.352537,0.00034666,7]
[385278243,1757734245091,-178.352537,0.00034666,7]
[385278245,1757734245100,-178.352537,0.00034666,7]
[385278247,1757734245109,-150.0,0.0003467,7]
[385278248,1757734245118,-200.0,0.0003472,10]
[385278250,1757734245127,-500.0,0.00034792,2]
[385278252,1757734245136,-500.0,0.00034794,120]
[385278253,1757734245145,-800.0,0.00034794,60]
[385278255,1757734245154,-1000.0,0.000348,120]
[385278257,1757734245163,-156.0,0.000348,120]
[385278258,1757734245173,-1000.0,0.000348,30]
[385278260,1757734245182,-696.0,0.000348,2]
[385278262,1757734245191,-168.0,0.00034833,2]
[385278263,1757734245200,-500.0,0.0003488,5]
[385278265,1757734245210,-2702.41,0.000349,7]
[385278267,1757734245219,-1000.0,0.000349,2]
[385278268,1757734245228,-405.64334295,0.000349,2]
[385278270,1757734245237,-909.2038748,0.0003497,2]
[385278272,1757734245247,-14336.2996172,0.0003499,2]
[385278273,1757734245256,-178.352537,0.0003499,7]
[385278275,1757734245265,-178.352537,0.0003499,7]
[385278277,1757734245274,-178.352537,0.0003499,7]
[385278278,1757734245283,-3059.0,0.00034996,2]
[385278280,1757734245293,-483.42,0.00034998,2]
[385278282,1757734245302,-471.6,0.00034998,2]
[385278283,1757734245311,-456.16,0.00034998,2]
[385278285,1757734245322,-470.72,0.00034998,2]
[385278287,1757734245331,-20402.27258714,0.00035,7]
[385278288,1757734245340,-10010.34628446,0.00035,7]
[385278290,1757734245349,-822.5405,0.00035,2]
[385278292,1757734245358,-151.0,0.00035,7]
[385278293,1757734245367,-151.0,0.00035,7]
[385278295,1757734245376,-552.213,0.00035,2]
[385278297,1757734245386,-178.352537,0.00035,7]
[385278299,1757734245395,-178.352537,0.00035,7]
[385278301,1757734245404,-178.352537,0.00035,7]
[385278303,1757734245417,-178.352537,0.00035,7]
[385278305,1757734245428,-178.352537,0.00035,7]
[385278306,1757734245437,-178.352537,0.00035,7]
[385278307,1757734245446,-50000.0,0.00035,30]
[385278308,1757734245456,-405.64334288,0.0003506,2]
[385278309,1757734245465,-500.0,0.00035066,2]
[385278310,1757734245474,-800.0,0.00035068,60]
[385278311,1757734245485,-168.0,0.00035168,2]
[385278312,1757734245494,-188.87105774,0.00035215,60]
[385278313,1757734245503,-405.64334288,0.0003522,2]
[385278314,1757734245512,-1792.03745215,0.00035313,2]
[385278315,1757734245522,-500.0,0.0003534,2]
[385278316,1757734245531,-800.0,0.00035342,60]
[385278317,1757734245540,-215.31,0.00035367,30]
[385278318,1757734245549,-405.64334288,0.00035379,2]
[385278319,1757734245558,-300.0,0.000354,2]
[385278320,1757734245567,-300.0,0.000354,2]
[385278322,1757734245576,-300.0,0.000354,2]
[385278323,1757734245586,-300.0,0.000354,2]
[385278324,1757734245595,-340.36050899,0.000354,2]
[385278326,1757734245604,-500.0,0.00035428,5]
[385278327,1757734245615,-1792.03745215,0.00035469,2]
[385278329,1757734245624,-405.92768506,0.00035479,120]
[385278331,1757734245634,-174.4004049,0.00035488,15]
[385278333,1757734245643,-1792.03745215,0.00035489,2]
[385278335,1757734245652,-1792.03745215,0.00035489,2]
[385278337,1757734245661,-168.0,0.00035495,2]
[385278339,1757734245670,-10419.68174045,0.00035499,30]
[385278341,1757734245680,-1761.3465,0.00035499,2]
[385278343,1757734245689,-2500.0,0.000355,12]
[385278345,1757734245699,-1792.03745215,0.00035506,2]
[385278347,1757734245708,-194.0,0.00035515,120]
[385278349,1757734245717,-5000.0,0.00035516,2]
[385278351,1757734245727,-500.0,0.00035516,2]
[385278353,1757734245736,-405.64334288,0.00035539,2]
[385278355,1757734245745,-1792.03745215,0.00035568,2]
[385278357,1757734245754,-500.0,0.00035573,5]
[385278359,1757734245763,-500.0,0.00035573,5]
[385278361,1757734245773,-503.34677591,0.00035573,5]
[385278363,1757734245782,-2343.00726618,0.00035578,46]
[385278365,1757734245791,-1792.03745215,0.0003558,2]
[385278367,1757734245801,-151.23,0.0003558,2]
[385278369,1757734245810,-1000.0,0.00035588,14]
[385278371,1757734245821,-1000.0,0.00035588,14]
[385278374,1757734245834,-1000.0,0.00035588,14]
[385278376,1757734245843,-1000.0,0.00035588,14]
[385278378,1757734245854,-398.26291805,0.00035588,14]
[385278380,1757734245863,-300.0,0.00035588,10]
[385278382,1757734245873,-300.0,0.00035589,10]
[385278384,1757734245882,-300.0,0.00035589,10]
[385278386,1757734245892,-1792.03745215,0.00035589,2]
[385278388,1757734245902,-296.0,0.00035589,2]
[385278389,1757734245912,-1501.55927404,0.00035589,2]
[385278390,1757734245921,-156.0,0.00035589,5]
[385278391,1757734245931,-25088.5243301,0.0003559,2]
[385278392,1757734245940,-258.77326819,0.0003559,2]
[385278393,1757734245950,-151.23,0.0003559,2]
[385278394,1757734245960,-442.23382878,0.00035596,60]
[385278395,1757734245970,-300.0,0.00035598,10]
[385278396,1757734245980,-300.0,0.00035598,10]
[385278397,1757734245990,-300.0,0.00035599,10]
[385278398,1757734246000,-999.0,0.00035599,120]
[385278399,1757734246010,-300.0,0.00035599,10]
[385278401,1757734246019,-150.0,0.00035599,20]
[385278403,1757734246028,-500.0,0.000356,5]
[385278405,1757734246036,-293.121929,0.000356,2]
[385278407,1757734246045,-390.34098294,0.000356,2]
[385278408,1757734246054,-777783.41577514,0.000356,2]
[385278409,1757734246063,-423094.9031754,0.000356,30]
[385278410,1757734246073,-5000.0,0.000356,12]
[385278411,1757734246083,-2587.92825076,0.000356,9]
[385278412,1757734246092,-500.0,0.00035614,2]
[385278413,1757734246102,-300.0,0.00035615,10]
[385278414,1757734246111,-300.0,0.00035615,10]
[385278415,1757734246121,-195.409435,0.00035616,2]
[385278416,1757734246130,-5287.659798,0.00035616,2]
[385278418,1757734246140,-169.770821,0.00035616,2]
[385278420,1757734246149,-155.845322,0.00035616,2]
[385278423,1757734246158,-186.065546,0.00035616,2]
[385278426,1757734246168,-3959.224172,0.00035616,2]
[385278429,1757734246177,-4797.838551,0.00035616,2]
[385278431,1757734246187,-401.40178138,0.00035616,2]
[385278433,1757734246196,-400.0,0.00035616,2]
[385278435,1757734246206,-400.0,0.00035616,2]
[385278437,1757734246216,-400.0,0.00035616,2]
[385278439,1757734246226,-400.0,0.00035616,2]
[385278441,1757734246236,-400.0,0.00035616,2]
[385278443,1757734246245,-400.0,0.00035616,2]
[385278445,1757734246255,-400.0,0.00035616,2]
[385278447,1757734246266,-400.0,0.00035616,2]
[385278449,1757734246275,-400.0,0.00035616,2]
[385278451,1757734246285,-400.0,0.00035616,2]
[385278453,1757734246298,-500.0,0.00035616,2]
[385278455,1757734246307,-500.0,0.00035616,2]
[385278458,1757734246317,-500.0,0.00035616,2]
[385278460,1757734246326,-500.0,0.00035616,2]
[385278462,1757734246336,-500.0,0.00035616,2]
[385278464,1757734246345,-500.0,0.00035616,2]
[385278465,1757734246356,-500.0,0.00035616,2]
[385278468,1757734246366,-500.0,0.00035616,2]
[385278469,1757734246375,-400.0,0.00035616,2]
[385278472,1757734246385,-500.0,0.00035616,2]
[385278474,1757734246394,-647.89565627,0.00035616,2]
[385278476,1757734246404,-400.0,0.00035616,2]
[385278478,1757734246418,-300.0,0.00035616,2]
[385278480,1757734246427,-400.0,0.00035616,2]
[385278482,1757734246436,-275.7921616,0.00035616,2]
[385278484,1757734246445,-400.0,0.00035616,2]
[385278486,1757734246460,-400.0,0.00035616,2]
[385278488,1757734246470,-400.0,0.00035616,2]
[385278489,1757734246479,-400.0,0.00035616,2]
[385278491,1757734246490,-401.72322404,0.00035616,2]
[385278494,1757734246500,-400.0,0.00035616,2]
[385278496,1757734246509,-400.0,0.00035616,2]
[385278498,1757734246519,-400.0,0.00035616,2]
[385278500,1757734246528,-400.0,0.00035616,2]
[385278502,1757734246537,-400.0,0.00035616,2]
[385278504,1757734246546,-400.0,0.00035616,2]
[385278506,1757734246556,-400.0,0.00035616,2]
[385278508,1757734246565,-400.0,0.00035616,2]
[385278510,1757734246574,-400.0,0.00035616,2]
[385278512,1757734246584,-400.0,0.00035616,2]
[385278514,1757734246593,-401.14216302,0.00035616,2]
[385278516,1757734246603,-400.0,0.00035616,2]
[385278518,1757734246612,-400.0,0.00035616,2]
[385278520,1757734246622,-400.0,0.00035616,2]
[385278521,1757734246631,-400.0,0.00035616,2]
[385278523,1757734246640,-400.0,0.00035616,2]
[385278525,1757734246649,-400.0,0.00035616,2]
[385278527,1757734246659,-400.0,0.00035616,2]
[385278529,1757734246668,-400.0,0.00035616,2]
[385278532,1757734246677,-400.0,0.00035616,2]
[385278534,1757734246686,-400.0,0.00035616,2]
[385278536,1757734246696,-400.0,0.00035616,2]
[385278537,1757734246705,-400.0,0.00035616,2]
[385278539,1757734246714,-400.0,0.00035616,2]
[385278541,1757734246723,-400.0,0.00035616,2]
[385278544,1757734246732,-400.0,0.00035616,2]
[385278545,1757734246741,-400.0,0.00035616,2]
[385278547,1757734246750,-400.0,0.00035616,2]
[385278550,1757734246760,-400.0,0.00035616,2]
[385278552,1757734246771,-400.0,0.00035616,2]